bitfinex-derivatives/quotes_BNBF0:USTF0_20250331
["timestamp","ask_amount","ask_price","bid_price","bid_amount"]
[1743443724760,0.32991867,606.21,604.96,0.33060037]
[1743443724960,0.30357837,606.2,604.96,0.33060037]
[1743443725161,0.2875629,605.73,604.96,0.33060037]
[1743443725554,0.32991867,606.21,604.96,0.33060037]
[1743443725757,0.28756885,605.72,604.96,0.33060037]
[1743443726259,0.32991867,606.21,604.96,0.33060037]
[1743443726461,0.28756885,605.71,604.96,0.33060037]
[1743443726661,0.32991867,606.21,604.96,0.33060037]
[1743443726858,0.3035786,606.2,604.96,0.33060037]
[1743443727064,0.28759142,605.7,604.96,0.33060037]
[1743443727262,0.32991867,606.21,604.96,0.33060037]
[1743443727463,0.30357905,606.2,604.96,0.33060037]
[1743443727666,0.28758073,605.69,604.96,0.33060037]
[1743443727963,0.32992956,606.19,604.96,0.33060037]
[1743443728265,0.28758192,605.68,604.96,0.33060037]
[1743443728460,0.32992956,606.19,604.96,0.33060037]
[1743443728763,0.28758192,605.67,604.96,0.33060037]
[1743443729163,0.32992956,606.19,604.96,0.33060037]
[1743443729459,0.28758073,605.66,604.96,0.33060037]
[1743443729664,0.32992956,606.19,604.96,0.33060037]
[1743443729864,0.30357935,606.18,604.96,0.33060037]
[1743443730064,0.28758192,605.65,604.96,0.33060037]
[1743443730364,0.32992956,606.19,604.96,0.33060037]
[1743443730558,0.2875831,605.64,604.96,0.33060037]
[1743443730958,0.32992956,606.19,604.96,0.33060037]
[1743443731162,0.28757597,605.63,604.96,0.33060037]
[1743443731662,0.32992956,606.19,604.96,0.33060037]
[1743443731963,0.28759023,605.62,604.96,0.33060037]
[1743443732159,0.32992956,606.19,604.96,0.33060037]
[1743443732361,0.28759142,605.61,604.96,0.33060037]
[1743443732756,0.32992956,606.19,604.96,0.33060037]
[1743443732964,0.28759499,605.6,604.96,0.33060037]
[1743443733364,1.31287421,606.19,604.96,0.33060037]
[1743443733365,0.98294465,606.18,604.96,0.33060037]
[1743443733563,0.2875938,605.59,604.96,0.33060037]
[1743443733965,0.32994044,606.17,604.96,0.33060037]
[1743443734166,0.28758073,605.58,604.96,0.33060037]
[1743443734561,0.98294465,606.16,604.96,0.33060037]
[1743443734760,0.28756766,605.57,604.96,0.33060037]
[1743443735166,0.98294465,606.16,604.96,0.33060037]
[1743443735366,0.2875629,605.56,604.96,0.33060037]
[1743443735662,0.32994044,606.17,604.96,0.33060037]
[1743443735966,0.28752964,605.6,604.96,0.33060037]
[1743443736366,0.98294465,606.16,604.96,0.33060037]
[1743443736565,0.28752727,605.6,604.96,0.33060037]
[1743443736967,0.98294465,606.16,604.96,0.33060037]
[1743443737166,0.28753083,605.6,604.96,0.33060037]
[1743443737567,0.98389832,606.15,604.96,0.33060037]
[1743443737768,0.28752845,605.6,604.96,0.33060037]
[1743443738065,0.98389832,606.16,604.96,0.33060037]
[1743443738268,1.28747392,606.15,604.96,0.33060037]
[1743443738564,0.28752845,605.6,604.96,0.33060037]
[1743443738765,0.3035756,606.14,604.96,0.33060037]
[1743443739071,0.28751064,605.7,604.96,0.33060037]
[1743443739265,0.32994044,606.17,604.96,0.33060037]
[1743443739466,0.30348716,606.16,604.96,0.33060037]
[1743443739661,0.28747857,605.82,604.96,0.33060037]
[1743443739863,0.32994044,606.17,604.96,0.33060037]
[1743443740066,0.30346639,606.16,604.96,0.33060037]
[1743443740263,0.28747264,605.82,604.96,0.33060037]
[1743443740466,0.32994044,606.17,604.96,0.33060037]
[1743443740667,0.30346629,606.16,604.96,0.33060037]
[1743443740869,0.28746907,605.82,604.96,0.33060037]
[1743443741167,0.32994044,606.17,604.96,0.33060037]
[1743443741369,0.28746551,605.82,604.96,0.33060037]
[1743443741868,0.32994044,606.17,604.96,0.33060037]
[1743443742067,0.28746195,605.82,604.96,0.33060037]
[1743443742267,0.32994044,606.17,604.96,0.33060037]
[1743443742467,0.30347204,606.16,604.96,0.33060037]
[1743443742663,0.28746314,605.82,604.96,0.33060037]
[1743443742867,0.32994044,606.17,604.96,0.33060037]
[1743443743070,0.30347446,606.16,604.96,0.33060037]
[1743443743264,0.28746195,605.82,604.96,0.33060037]
[1743443743471,0.32994044,606.17,604.96,0.33060037]
[1743443743664,0.30347505,606.16,604.96,0.33060037]
[1743443743865,0.28747264,605.81,604.96,0.33060037]
[1743443744172,0.32994044,606.17,604.96,0.33060037]
[1743443744467,0.28747382,605.8,604.96,0.33060037]
[1743443744770,0.32994044,606.17,604.96,0.33060037]
[1743443744965,0.28747264,605.79,604.96,0.33060037]
[1743443745364,0.32994044,606.17,604.96,0.33060037]
[1743443745671,0.28747026,605.78,604.96,0.33060037]
[1743443746070,0.32994044,606.17,604.96,0.33060037]
[1743443746269,0.28747026,605.77,604.96,0.33060037]
[1743443746668,0.32994044,606.17,604.96,0.33060037]
[1743443746967,0.2874762,605.76,604.96,0.33060037]
[1743443747169,0.32994044,606.17,604.96,0.33060037]
[1743443747470,0.303501,606.16,604.96,0.33060037]
[1743443747671,0.28747976,605.76,604.96,0.33060037]
[1743443747970,0.32994044,606.17,604.96,0.33060037]
[1743443748171,0.28747857,605.76,604.96,0.33060037]
[1743443748569,0.32994044,606.17,604.96,0.33060037]
[1743443748765,0.2874762,605.76,604.96,0.33060037]
[1743443749274,0.32994044,606.17,604.96,0.33060037]
[1743443749472,0.28747264,605.76,604.96,0.33060037]
[1743443749674,0.32994044,606.17,604.96,0.33060037]
[1743443749875,0.30348126,606.16,604.96,0.33060037]
[1743443750167,0.28747026,605.76,604.96,0.33060037]
[1743443750372,0.32994044,606.17,604.96,0.33060037]
[1743443750567,0.2874667,605.76,604.96,0.33060037]
[1743443750970,0.32994044,606.17,604.96,0.33060037]
[1743443751170,0.28746551,605.76,604.96,0.33060037]
[1743443751569,0.32994044,606.17,604.96,0.33060037]
[1743443751769,0.28746551,605.76,604.96,0.33060037]
[1743443752076,0.32994044,606.17,604.96,0.33060037]
[1743443752276,0.30349949,606.16,604.96,0.33060037]
[1743443752574,0.2874667,605.76,604.96,0.33060037]
[1743443752874,0.32994044,606.17,604.96,0.33060037]
[1743443753073,0.28746789,605.76,604.96,0.33060037]
[1743443753374,0.32994044,606.17,604.96,0.33060037]
[1743443753568,0.30349921,606.16,604.96,0.33060037]
[1743443753768,0.28746551,605.76,604.96,0.33060037]
[1743443753973,0.32994044,606.17,604.96,0.33060037]
[1743443754268,0.28748332,605.75,604.96,0.33060037]
[1743443754673,0.32994044,606.17,604.96,0.33060037]
[1743443754974,0.28749282,605.74,604.96,0.33060037]
[1743443755176,0.32994044,606.17,604.96,0.33060037]
[1743443755376,0.30354019,606.16,604.96,0.33060037]
[1743443755575,0.28750589,605.73,604.96,0.33060037]
[1743443755776,0.32994044,606.17,604.96,0.33060037]
[1743443755969,0.30354757,606.16,604.96,0.33060037]
[1743443756173,0.28750945,605.72,604.96,0.33060037]
[1743443756474,0.32994044,606.17,604.96,0.33060037]
[1743443756674,0.28750945,605.71,604.96,0.33060037]
[1743443757072,0.32994044,606.17,604.96,0.33060037]
[1743443757279,0.28750826,605.7,604.96,0.33060037]
[1743443757776,0.32994044,606.17,604.96,0.33060037]
[1743443757977,0.28750945,605.69,604.96,0.33060037]
[1743443758173,0.32994044,606.17,604.96,0.33060037]
[1743443758380,0.30353351,606.16,604.96,0.33060037]
[1743443758573,0.28752727,605.68,604.96,0.33060037]
[1743443758779,0.32994044,606.17,604.96,0.33060037]
[1743443758976,0.30351004,606.16,604.96,0.33060037]
[1743443759172,0.2875142,605.69,604.96,0.33060037]
[1743443759374,0.32994044,606.17,604.96,0.33060037]
[1743443759676,0.59096578,606.16,604.96,0.33060037]
[1743443759873,0.30348958,606.15,604.96,0.33060037]
[1743443761576,0.30348475,606.14,604.96,0.33060037]
[1743443761781,0.30348475,606.15,604.96,0.33060037]
[1743443761976,0.30348475,606.14,604.96,0.33060037]
[1743443762175,0.30348475,606.16,604.96,0.33060037]
[1743443762376,0.30348475,606.15,604.96,0.33060037]
[1743443762576,0.30348475,606.14,604.96,0.33060037]
[1743443762781,0.30348475,606.13,604.96,0.33060037]
[1743443763083,0.30348475,606.12,604.96,0.33060037]
[1743443763383,0.30348475,606.11,604.96,0.33060037]
[1743443763681,0.30348475,606.1,604.96,0.33060037]
[1743443763881,0.30348475,606.16,604.96,0.33060037]
[1743443764084,0.30348475,606.15,604.96,0.33060037]
[1743443764279,0.30348475,606.16,604.96,0.33060037]
[1743443764480,0.30348475,606.15,604.96,0.33060037]
[1743443764787,0.30349921,606.14,604.96,0.33060037]
[1743443764984,0.30349921,606.16,604.96,0.33060037]
[1743443765175,0.30349921,606.15,604.96,0.33060037]
[1743443765377,0.30349921,606.14,604.96,0.33060037]
[1743443765580,0.30349921,606.13,604.96,0.33060037]
[1743443765879,0.30349921,606.12,604.96,0.33060037]
[1743443766182,0.30349921,606.11,604.96,0.33060037]
[1743443766378,0.30348515,606.1,604.96,0.33060037]
[1743443766577,0.30348515,606.09,604.96,0.33060037]
[1743443766780,0.30348515,606.16,604.96,0.33060037]
[1743443766979,0.30348515,606.15,604.96,0.33060037]
[1743443767180,0.30348515,606.14,604.96,0.33060037]
[1743443767378,0.30348515,606.16,604.96,0.33060037]
[1743443767682,0.30348515,606.15,604.96,0.33060037]
[1743443767882,0.30348515,606.16,604.96,0.33060037]
[1743443768084,0.32994044,606.17,604.96,0.33060037]
[1743443768085,0.30348515,606.15,604.96,0.33060037]
[1743443768385,0.30348515,606.14,604.96,0.33060037]
[1743443768583,0.30348515,606.13,604.96,0.33060037]
[1743443768783,0.30348515,606.12,604.96,0.33060037]
[1743443768983,0.30348515,606.11,604.96,0.33060037]
[1743443769180,0.30348515,606.16,604.96,0.33060037]
[1743443769384,0.30348515,606.15,604.96,0.33060037]
[1743443769581,0.32994044,606.17,604.96,0.33060037]
[1743443769786,0.3035001,606.16,604.96,0.33060037]
[1743443773183,0.3035001,606.15,604.96,0.33060037]
[1743443773386,0.3035001,606.49,604.96,0.33060037]
[1743443773584,0.3035001,606.14,604.96,0.33060037]
[1743443773784,0.3035001,606.13,604.96,0.33060037]
[1743443774088,0.3035001,606.12,604.96,0.33060037]
[1743443774291,0.3035001,606.46,604.96,0.33060037]
[1743443774484,0.98439221,606.47,604.96,0.33060037]
[1743443774485,0.30340917,606.45,604.96,0.33060037]
[1743443774684,0.30340917,606.44,604.96,0.33060037]
[1743443774890,0.30340917,606.43,604.96,0.33060037]
[1743443775092,0.30340917,606.48,604.96,0.33060037]
[1743443775289,0.30340917,606.47,604.96,0.33060037]
[1743443775491,0.30340917,606.46,604.96,0.33060037]
[1743443775689,0.30340917,606.45,604.96,0.33060037]
[1743443775890,0.30340917,606.44,604.96,0.33060037]
[1743443776085,0.30340917,606.43,604.96,0.33060037]
[1743443776287,0.30340917,606.42,604.96,0.33060037]
[1743443776488,0.30340917,606.41,604.96,0.33060037]
[1743443776684,0.30340917,606.47,604.96,0.33060037]
[1743443776888,0.30340917,606.46,604.96,0.33060037]
[1743443777089,0.30340917,606.45,604.96,0.33060037]
[1743443777286,0.30340917,606.44,604.96,0.33060037]
[1743443777488,0.30340917,606.43,604.96,0.33060037]
[1743443777693,0.30340688,606.42,604.96,0.33060037]
[1743443777892,0.98432814,606.49,604.96,0.33060037]
[1743443777893,0.30340688,606.41,604.96,0.33060037]
[1743443778093,0.30340688,606.4,604.96,0.33060037]
[1743443778393,0.30340688,606.39,604.96,0.33060037]
[1743443778593,0.30340688,606.38,604.96,0.33060037]
[1743443778787,0.30340688,606.37,604.96,0.33060037]
[1743443778989,0.30340688,606.51,604.96,0.33060037]
[1743443779196,0.30340688,606.5,604.96,0.33060037]
[1743443779386,0.30340688,606.49,604.96,0.33060037]
[1743443779586,0.30340688,606.48,604.96,0.33060037]
[1743443779791,0.30340688,606.47,604.96,0.33060037]
[1743443779988,0.30340688,606.46,604.96,0.33060037]
[1743443780189,0.30340688,606.45,604.96,0.33060037]
[1743443780389,0.30340688,606.44,604.96,0.33060037]
[1743443780592,0.30340688,606.43,604.96,0.33060037]
[1743443780789,0.30340688,606.42,604.96,0.33060037]
[1743443780989,0.30340688,606.41,604.96,0.33060037]
[1743443781193,0.30340688,606.5,604.96,0.33060037]
[1743443781393,0.2873492,606.41,604.96,0.33060037]
[1743443781592,0.30340688,606.4,604.96,0.33060037]
[1743443781794,0.30340688,606.39,604.96,0.33060037]
[1743443782090,0.30340688,606.38,604.96,0.33060037]
[1743443782295,0.30340688,606.39,604.96,0.33060037]
[1743443782490,0.30340688,606.38,604.96,0.33060037]
[1743443782692,0.30340688,606.39,604.96,0.33060037]
[1743443782891,0.30340688,606.38,604.96,0.33060037]
[1743443783093,0.30340688,606.39,604.96,0.33060037]
[1743443783293,0.30340688,606.38,604.96,0.33060037]
[1743443783492,0.30340688,606.39,604.96,0.33060037]
[1743443783690,0.30340688,606.38,604.96,0.33060037]
[1743443783890,0.28738361,606.37,604.96,0.33060037]
[1743443784087,0.30340688,606.36,604.96,0.33060037]
[1743443787395,0.30338388,606.35,604.96,0.33060037]
[1743443787697,0.30338388,606.34,604.96,0.33060037]
[1743443787897,0.30338388,606.36,604.96,0.33060037]
[1743443790096,0.59081378,606.35,604.96,0.33060037]
[1743443790297,0.30338388,606.34,604.96,0.33060037]
[1743443792194,0.2874299,606.35,604.96,0.33060037]
[1743443792400,0.30349095,606.34,604.96,0.33060037]
[1743443797701,0.32985338,606.33,604.96,0.33060037]
[1743443797902,0.30349095,606.32,604.96,0.33060037]
[1743443798102,0.32986426,606.31,604.96,0.33060037]
[1743443798304,0.30349095,606.3,604.96,0.33060037]
[1743443798807,0.2875237,606.29,604.96,0.33060037]
[1743443799106,1.28625114,606.28,604.96,0.33060037]
[1743443799403,0.30349095,606.27,604.96,0.33060037]
[1743443799705,0.30349095,606.26,604.96,0.33060037]
[1743443799906,0.30349095,606.25,604.96,0.33060037]
[1743443800106,0.30349095,606.24,604.96,0.33060037]
[1743443800306,0.63339874,606.23,604.96,0.33060037]
[1743443800503,0.63340418,606.22,604.96,0.33060037]
[1743443800704,0.30349095,606.21,604.96,0.33060037]
[1743443800905,0.63340962,606.21,604.96,0.33060037]
[1743443801205,0.30349095,606.2,604.96,0.33060037]
[1743443801906,0.28756766,606.19,604.96,0.33060037]
[1743443802099,0.30349095,606.18,604.96,0.33060037]
[1743443804806,0.30349095,606.2,604.96,0.33060037]
[1743443805006,0.2875831,606.17,604.96,0.33060037]
[1743443805203,0.30357585,606.16,604.96,0.33060037]
[1743443806705,0.2875831,606.17,604.96,0.33060037]
[1743443806903,0.30357557,606.15,604.96,0.33060037]
[1743443807105,0.30357557,606.14,604.96,0.33060037]
[1743443807310,0.30357557,606.16,604.96,0.33060037]
[1743443807508,0.30357557,606.15,604.96,0.33060037]
[1743443807706,0.30357557,606.14,604.96,0.33060037]
[1743443807909,0.28758667,606.15,604.96,0.33060037]
[1743443808108,0.30357557,606.14,604.96,0.33060037]
[1743443810215,0.30357557,606.13,604.96,0.33060037]
[1743443810514,0.30357557,606.12,604.96,0.33060037]
[1743443810714,0.98235159,606.1,604.96,0.33060037]
[1743443810918,0.63355956,606.09,604.96,0.33060037]
[1743443811111,0.30357557,606.08,604.96,0.33060037]
[1743443811417,1.28592716,606.07,604.96,0.33060037]
[1743443811610,0.30365729,606.06,604.96,0.33060037]
[1743443811810,0.30365729,606.05,604.96,0.33060037]
[1743443812016,0.30365729,606.04,604.96,0.33060037]
[1743443812216,1.61602554,606.03,604.96,0.33060037]
[1743443812410,0.28758667,606.15,604.96,0.33060037]
[1743443812411,1.61603099,606.02,604.96,0.33060037]
[1743443812617,0.63368484,606.01,604.96,0.33060037]
[1743443812917,0.63369029,606.0,604.96,0.33060037]
[1743443813111,0.63369573,605.99,604.96,0.33060037]
[1743443813316,0.63370118,605.98,604.96,0.33060037]
[1743443813517,0.63370663,605.97,604.96,0.33060037]
[1743443813821,0.30365729,605.96,604.96,0.33060037]
[1743443814018,0.6176883,605.97,604.96,0.33060037]
[1743443814019,0.30365729,605.95,604.96,0.33060037]
[1743443814218,0.30365729,605.96,604.96,0.33060037]
[1743443814414,0.30365729,605.95,604.96,0.33060037]
[1743443814619,0.30365729,605.94,604.96,0.33060037]
[1743443814819,0.30365729,605.96,604.96,0.33060037]
[1743443815019,0.30365729,605.95,604.96,0.33060037]
[1743443815215,0.30365729,605.96,604.96,0.33060037]
[1743443815516,0.30365729,605.95,604.96,0.33060037]
[1743443815721,0.6176883,605.97,604.96,0.33060037]
[1743443815722,0.30365729,605.96,604.96,0.33060037]
[1743443815922,0.6176883,605.97,604.96,0.33060037]
[1743443815923,0.30365729,605.95,604.96,0.33060037]
[1743443816221,0.30365729,605.94,604.96,0.33060037]
[1743443816421,0.30365729,605.96,604.96,0.33060037]
[1743443816623,0.30365729,605.95,604.96,0.33060037]
[1743443816813,0.30365729,605.94,604.96,0.33060037]
[1743443819824,0.28769128,605.93,604.96,0.33060037]
[1743443820223,0.30365729,605.92,604.96,0.33060037]
[1743443822824,0.28769128,605.91,604.96,0.33060037]
[1743443823227,0.30365729,605.9,604.96,0.33060037]
[1743443823828,0.30365729,605.89,603.51,2.00821842]
[1743443824028,0.30365729,605.88,603.52,2.00821842]
[1743443824224,0.30365729,605.87,603.53,2.00821842]
[1743443824431,0.30365729,605.86,603.64,2.52093344]
[1743443824629,0.30365729,605.85,603.75,0.33126293]
[1743443824824,0.30365729,605.84,603.75,0.33126293]
[1743443825023,0.30365729,605.83,603.75,0.33126293]
[1743443825223,0.30365729,605.82,603.75,0.33126293]
[1743443825524,0.30365729,605.81,603.75,0.33126293]
[1743443825727,0.30365729,605.89,603.75,0.33126293]
[1743443825923,0.33008747,605.9,603.75,0.33126293]
[1743443825924,0.30365729,605.88,603.75,0.33126293]
[1743443826129,0.28771031,605.8,603.75,0.33126293]
[1743443826323,0.30365729,605.79,603.75,0.33126293]
[1743443826522,0.30365729,605.89,603.75,0.33126293]
[1743443826726,0.28771387,605.79,603.75,0.33126293]
[1743443826926,0.30365729,605.78,603.75,0.33126293]
[1743443827129,0.30365729,605.77,603.75,0.33126293]
[1743443827333,0.30365729,605.76,603.75,0.33126293]
[1743443827530,0.30365729,605.77,603.75,0.33126293]
[1743443827722,0.30365729,605.76,603.75,0.33126293]
[1743443827926,0.30365729,605.77,603.75,0.33126293]
[1743443828128,0.30365729,605.76,603.75,0.33126293]
[1743443828330,0.30365729,605.75,603.75,0.33126293]
[1743443828527,0.30365729,605.74,603.75,0.33126293]
[1743443828728,0.30365729,605.89,603.75,0.33126293]
[1743443828928,0.30365729,605.88,603.75,0.33126293]
[1743443829224,0.28772101,605.73,603.75,0.33126293]
[1743443829429,0.30365729,605.72,603.75,0.33126293]
[1743443829630,0.30365729,605.71,603.75,0.33126293]
[1743443829826,0.30365729,605.86,603.75,0.33126293]
[1743443830029,0.30365729,605.85,603.75,0.33126293]
[1743443830230,0.30365729,605.84,603.75,0.33126293]
[1743443830426,0.30365729,605.83,603.75,0.33126293]
[1743443830628,0.30365729,605.86,603.75,0.33126293]
[1743443830831,0.30365729,605.85,603.75,0.33126293]
[1743443831326,0.30365729,605.84,603.75,0.33126293]
[1743443831526,0.30365729,605.83,603.75,0.33126293]
[1743443831728,0.30365729,605.82,603.75,0.33126293]
[1743443832029,0.30365729,605.89,603.75,0.33126293]
[1743443832230,0.30365729,605.88,603.75,0.33126293]
[1743443832432,0.30365729,605.87,603.75,0.33126293]
[1743443832632,0.30365729,605.86,603.75,0.33126293]
[1743443832831,0.30365729,605.89,603.75,0.33126293]
[1743443833033,0.30365729,605.88,603.75,0.33126293]
[1743443833235,0.30365729,605.89,603.75,0.33126293]
[1743443833434,0.30365729,605.88,603.75,0.33126293]
[1743443833631,0.30365729,605.89,603.75,0.33126293]
[1743443833837,0.30365729,605.88,603.75,0.33126293]
[1743443834034,0.30365729,605.89,603.75,0.33126293]
[1743443834230,0.30365729,605.88,603.75,0.33126293]
[1743443834536,0.30372725,605.87,603.75,0.33126293]
[1743443834730,0.30372725,605.89,603.75,0.33126293]
[1743443834935,0.30372725,605.88,603.75,0.33126293]
[1743443835131,0.30372725,605.89,603.75,0.33126293]
[1743443835537,0.30372725,605.88,603.75,0.33126293]
[1743443835836,0.30372725,605.87,603.75,0.33126293]
[1743443836040,0.30372725,605.86,603.75,0.33126293]
[1743443836243,0.30372725,605.89,603.75,0.33126293]
[1743443836535,0.30372725,605.88,603.75,0.33126293]
[1743443836841,0.30372725,605.87,603.75,0.33126293]
[1743443837040,0.30372725,605.86,603.75,0.33126293]
[1743443837339,0.30372725,605.85,603.75,0.33126293]
[1743443837636,0.30372725,605.84,603.75,0.33126293]
[1743443837839,0.30372725,605.83,603.75,0.33126293]
[1743443838040,0.30372725,605.89,603.75,0.33126293]
[1743443838240,0.33008747,605.9,603.75,0.33126293]
[1743443838241,0.30372725,605.88,603.75,0.33126293]
[1743443838435,0.30372725,605.89,603.75,0.33126293]
[1743443838634,0.33008747,605.9,603.75,0.33126293]
[1743443838635,0.30372725,605.88,603.75,0.33126293]
[1743443838838,0.30372725,605.89,603.75,0.33126293]
[1743443841739,0.30372725,605.89,603.82,2.52093344]
[1743443842139,0.30372725,605.89,603.92,0.33116969]
[1743443842849,0.33008747,605.9,603.92,0.33116969]
[1743443842850,0.30372725,605.88,603.92,0.33116969]
[1743443843047,0.30372725,605.87,603.92,0.33116969]
[1743443843249,0.30372725,605.86,603.92,0.33116969]
[1743443843445,0.30372725,605.85,603.92,0.33116969]
[1743443843751,0.30372725,605.84,603.92,0.33116969]
[1743443843949,0.30372725,605.83,603.92,0.33116969]
[1743443844152,0.33008747,605.9,603.92,0.33116969]
[1743443844350,0.30372329,605.89,603.92,0.33116969]
[1743443844551,0.30372329,605.88,603.92,0.33116969]
[1743443844751,0.30372329,605.87,603.92,2.85210313]
[1743443844950,0.30372329,605.86,603.92,2.85210313]
[1743443845152,0.30372329,605.85,603.92,2.85210313]
[1743443845352,1.30670834,605.9,603.93,2.00821842]
[1743443845353,0.30372329,605.84,603.93,2.00821842]
[1743443845652,0.30372329,605.83,603.93,2.00821842]
[1743443845853,0.30372329,605.82,603.96,2.52093344]
[1743443846056,0.30372329,605.81,603.98,0.33113679]
[1743443846253,0.30372329,605.89,603.98,0.33113679]
[1743443846448,0.97723514,605.86,603.98,0.33113679]
[1743443846645,0.30372329,605.85,603.98,0.33113679]
[1743443846850,0.30372329,605.84,603.98,0.33113679]
[1743443847045,0.97723514,605.86,603.98,0.33113679]
[1743443847046,0.6338489,605.83,603.98,0.33113679]
[1743443847250,0.63385435,605.82,603.98,0.33113679]
[1743443847447,0.30372329,605.81,603.98,0.33113679]
[1743443847653,0.33013106,605.82,603.98,0.33113679]
[1743443847654,0.30372329,605.8,603.98,0.33113679]
[1743443848051,0.30372329,605.79,603.98,0.33113679]
[1743443848247,0.30372329,605.78,603.98,0.33113679]
[1743443848451,0.33013106,605.82,603.98,0.33113679]
[1743443848452,0.30372329,605.77,603.98,0.33113679]
[1743443848648,0.30372329,605.81,603.98,0.33113679]
[1743443848852,0.30372329,605.8,603.98,0.33113679]
[1743443849052,0.30372329,605.81,603.98,0.33113679]
[1743443849252,0.30372329,605.8,603.98,0.33113679]
[1743443849451,0.30372329,605.79,603.98,0.33113679]
[1743443849651,0.30372329,605.81,603.98,0.33113679]
[1743443849852,0.30372329,605.8,603.98,0.33113679]
[1743443850053,0.30372329,605.81,603.98,0.33113679]
[1743443850251,0.30372329,605.8,603.98,0.33113679]
[1743443850448,0.30372329,605.81,603.98,0.33113679]
[1743443851150,0.6338598,605.81,603.98,0.33113679]
[1743443851349,0.30372329,605.8,603.98,0.33113679]
[1743443852353,0.33013651,605.81,603.98,0.33113679]
[1743443852550,0.30377024,605.8,603.98,0.33113679]
[1743443855554,0.30377024,605.79,603.98,0.33113679]
[1743443855755,0.30376914,605.78,603.98,0.33113679]
[1743443855957,0.30376914,605.8,603.98,0.33113679]
[1743443856261,0.30376914,605.79,603.98,0.33113679]
[1743443856459,0.30376914,605.78,603.98,0.33113679]
[1743443856659,0.30376914,605.77,603.98,0.33113679]
[1743443856854,0.30376914,605.76,603.98,0.33113679]
[1743443857053,0.30376914,605.75,603.98,0.33113679]
[1743443857257,0.33013651,605.81,603.98,0.33113679]
[1743443857457,0.30375429,605.8,603.98,0.33113679]
[1743443860162,0.30375429,605.8,603.98,2.85207023]
[1743443860564,0.33013651,605.81,603.98,2.85207023]
[1743443860764,0.30367555,605.8,603.98,2.85207023]
[1743443861459,0.30367555,605.8,603.98,0.33113679]
[1743443862767,0.30367555,605.8,603.99,2.52093344]
[1743443863163,0.30367555,605.8,604.01,0.33112034]
[1743443863364,0.30367555,605.8,604.02,2.00821842]
[1743443863561,0.30367555,605.8,604.04,0.3311039]
[1743443863764,0.30367555,605.8,604.04,2.33932232]
[1743443863962,0.30367555,605.8,604.04,3.11086276]
[1743443864468,0.30367555,605.8,604.05,2.00821842]
[1743443864667,0.30367555,605.8,604.04,3.11086276]
[1743443864668,0.30367555,605.8,604.07,0.33108745]
[1743443865367,0.33013651,605.81,604.07,0.33108745]
[1743443865567,0.30367527,605.8,604.07,0.33108745]
[1743443867663,0.30367527,605.79,604.07,0.33108745]
[1743443867965,0.30367527,605.78,604.07,0.33108745]
[1743443868265,0.30367527,605.77,604.07,0.33108745]
[1743443868466,0.30367527,606.0,604.07,0.33108745]
[1743443868666,0.30367527,605.99,604.07,0.33108745]
[1743443868865,0.30367527,606.0,604.07,0.33108745]
[1743443869066,0.30367527,605.99,604.07,0.33108745]
[1743443869270,0.30367527,606.0,604.07,0.33108745]
[1743443869470,1.2844621,605.99,604.07,0.33108745]
[1743443869671,0.30367527,605.98,604.07,0.33108745]
[1743443870272,1.2844621,605.98,604.07,0.33108745]
[1743443870468,0.30367527,605.97,604.08,2.00821842]
[1743443870671,1.2844621,605.97,604.1,0.33107101]
[1743443870868,0.30367527,605.96,604.1,0.33107101]
[1743443871174,0.98078683,605.93,604.1,0.33107101]
[1743443871370,0.30367527,605.92,604.1,0.33107101]
[1743443872069,0.98078683,605.93,604.1,0.33107101]
[1743443872270,0.30369605,605.92,604.1,0.33107101]
[1743443872669,0.30369605,605.94,604.1,0.33107101]
[1743443872870,1.28515155,605.93,604.1,0.33107101]
[1743443873074,0.33006023,605.95,604.1,0.33107101]
[1743443873075,0.9814555,605.88,604.1,0.33107101]
[1743443873279,1.28515155,605.87,604.1,0.33107101]
[1743443873577,0.30369605,605.86,604.1,0.33107101]
[1743443873775,0.98140478,605.88,604.1,0.33107101]
[1743443873975,0.30369605,605.87,604.1,0.33107101]
[1743443874779,0.30369605,605.89,604.1,0.33107101]
[1743443874979,0.30369605,605.88,604.1,0.33107101]
[1743443875179,0.98150354,605.93,604.1,0.33107101]
[1743443875375,0.30369605,605.92,604.1,0.33107101]
[1743443875573,0.30369605,605.91,604.1,0.33107101]
[1743443876075,0.30369605,605.9,604.1,0.33107101]
[1743443876277,0.30369605,605.93,604.1,0.33107101]
[1743443876875,0.30368468,605.92,604.1,0.33107101]
[1743443877074,0.30368468,605.91,604.1,0.33107101]
[1743443877282,0.30368468,605.9,604.1,0.33107101]
[1743443877574,0.30368468,605.89,604.1,0.33107101]
[1743443877976,0.30368468,605.88,604.1,0.33107101]
[1743443878177,0.30368468,605.87,604.1,0.33107101]
[1743443878377,0.30368468,605.94,604.1,0.33107101]
[1743443878577,0.30368488,605.93,604.1,0.33107101]
[1743443878776,0.30368488,605.94,604.1,0.33107101]
[1743443879084,0.30368488,605.93,604.1,0.33107101]
[1743443879381,0.30368488,605.92,604.1,0.33107101]
[1743443879583,0.30368488,605.93,604.1,0.33107101]
[1743443879882,0.30368488,605.92,604.1,0.33107101]
[1743443880078,0.98174482,605.94,604.1,0.33107101]
[1743443880285,0.30368497,605.93,604.1,0.33107101]
[1743443881980,0.98184195,605.91,604.11,2.01323316]